fUSD/lending_fUSD_20240829
["ID","MTS","AMOUNT","RATE_DAILY","PERIOD"]
[336527886,1724889682923,1050.0,0.0001,2]
[336527887,1724889684015,1100.0,0.00012,2]
[336527888,1724889694360,161.09,0.00010959,2]
[336527889,1724889965604,-178.44,0.00013699,2]
[336527890,1724889965631,-1198.0,0.00015998,2]
[336527891,1724889965658,-369.0,0.00015999,2]
[336527892,1724889965686,-2296.790769,0.00016,2]
[336527893,1724889965714,-162.96,0.00016712,2]
[336527894,1724889965740,-2101.9998,0.00018918,2]
[336527895,1724889965765,-263.231,0.00019005,2]
[336527896,1724889965792,-250.0,0.00019005,2]
[336527897,1724889965817,-201.091,0.00019005,2]
[336527898,1724889965843,-170.171,0.00019005,2]
[336527899,1724889965868,-150.0,0.00019017,2]
[336527900,1724889965893,-150.0,0.00019018,2]
[336527901,1724889965919,-289.0,0.00019018,2]
[336527902,1724889965945,-1544.0,0.00019018,2]
[336527903,1724889965970,-1259.0,0.00019018,2]
[336527904,1724889965995,-623.0,0.00019018,2]
[336527905,1724889966020,-1922.0,0.00019018,2]
[336527906,1724889966046,-150.0,0.00019018,2]
[336527907,1724889966073,-447.0,0.00019018,2]
[336527908,1724889966098,-556.0,0.00019018,2]
[336527909,1724889966124,-930.0,0.00019018,2]
[336527910,1724889966148,-810.0,0.00019018,2]
[336527911,1724889966172,-552.0,0.00019018,2]
[336527912,1724889966198,-1897.0,0.00019018,2]
[336527913,1724889966223,-764.0,0.00019018,2]
[336527914,1724889966251,-1154.0,0.00019018,2]
[336527915,1724889966279,-248.0,0.00019018,2]
[336527916,1724889966309,-3321.0,0.00019018,2]
[336527917,1724889966336,-673.055,0.00019118,2]
[336527918,1724889966364,-172.52,0.00019774,2]
[336527919,1724889966390,-736.5947,0.000198,2]
[336527920,1724889966418,-824.4,0.00020224,2]
[336527921,1724889966445,-421.71,0.00020438,2]
[336527922,1724889966473,-29013.5992,0.00020448,2]
[336527923,1724889966500,-2000.0,0.000205,2]
[336527924,1724889966529,-2000.0,0.0002051,2]
[336527925,1724889966555,-3924.44654,0.0002052,2]
[336527926,1724889966581,-150.0,0.000206,2]
[336527927,1724889966605,-999.0,0.00021,2]
[336527928,1724889966629,-150.0,0.000216,3]
[336527929,1724889966653,-4546.75,0.00021956,2]
[336527930,1724889966680,-500.0,0.00022,2]
[336527931,1724889966706,-159.608,0.00022,2]
[336527932,1724889966732,-150.0,0.00022005,2]
[336527933,1724889966760,-150.0,0.00022005,2]
[336527934,1724889966787,-150.0,0.00022017,2]
[336527935,1724889966813,-150.0,0.00022018,2]
[336527936,1724889966840,-1259.0,0.00022018,2]
[336527937,1724889966867,-623.0,0.00022018,2]
[336527938,1724889966897,-238.316,0.00022018,2]
[336527939,1724889966925,-208.0,0.00022018,2]
[336527940,1724889966951,-1916.877,0.00022018,2]
[336527941,1724889966978,-421.71,0.00022192,2]
[336527942,1724889967003,-4290.77,0.00022202,2]
[336527943,1724889967033,-175.2,0.00022314,2]
[336527944,1724889967060,-152.8,0.0002232,2]
[336527945,1724889967087,-1000.0,0.00022466,2]
[336527946,1724889967116,-200.0,0.00022474,2]
[336527947,1724889967143,-824.4,0.00022488,2]
[336527948,1724889967171,-250.0,0.00022514,2]
[336527949,1724889967197,-780.66,0.00022519,30]
[336527950,1724889967223,-999.0,0.00022595,2]
[336527951,1724889967250,-188.104859,0.000226,4]
[336527952,1724889967277,-150.0,0.00022605,2]
[336527953,1724889967304,-167.0,0.00022624,2]
[336527954,1724889967334,-467.16,0.00022625,2]
[336527955,1724889967364,-250.0,0.00022629,2]
[336527956,1724889967392,-817.14,0.00022656,2]
[336527957,1724889967422,-1000.0,0.00022942,2]
[336527958,1724889967451,-318.58,0.00023,2]
[336527959,1724889967482,-150.0,0.00023193,2]
[336527960,1724889967511,-325.0,0.000233,2]
[336527961,1724889967540,-1000.0,0.000233,2]
[336527962,1724889967569,-12302.91,0.00023368,2]
[336527963,1724889967596,-2753.96,0.00023368,2]
[336527964,1724889967623,-1110.37,0.00023368,2]
[336527965,1724889967651,-3000.0,0.000236,2]
[336527966,1724889967677,-200.0,0.000236,2]
[336527967,1724889967702,-150.0,0.00023782,2]
[336527968,1724889967727,-186.0,0.000238,7]
[336527969,1724889967752,-318.58,0.00023965,2]
[336527970,1724889967777,-186.0,0.00024,7]
[336527971,1724889967801,-999.0,0.0002419,2]
[336527972,1724889967827,-180.0,0.00024342,2]
[336527973,1724889967852,-150.0,0.0002437,2]
[336527974,1724889967877,-266.639462,0.00024384,2]
[336527975,1724889967901,-1923.72458733,0.00024432,2]
[336527976,1724889974470,531.8,0.00024192,2]
[336527977,1724889974578,150.0,0.00024192,2]
[336527978,1724889974620,333.42,0.00024192,2]
[336527982,1724890044970,-601.6776189,0.00029268,6]
[336527983,1724890044994,-515.82064226,0.00029268,7]
[336527984,1724890045017,-951.41324505,0.00029268,5]
[336527985,1724890045041,-576.67820164,0.00029268,5]
[336527986,1724890045065,-210.76379419,0.00029268,7]
[336527987,1724890045099,-206.862531,0.00029268,5]
[336527988,1724890045124,-547.44518573,0.00029268,5]
[336527989,1724890045148,-1933.35768382,0.00029268,5]
[336527990,1724890045173,-150.0,0.00029268,7]
[336527991,1724890045197,-28643.52252222,0.00029268,5]
[336527992,1724890045220,-18397.17658236,0.00029268,5]
[336527993,1724890045245,-212.9258166,0.00029268,5]
[336527994,1724890045270,-7690.92064412,0.00029268,7]
[336527995,1724890045294,-31170.54430541,0.00029268,7]
[336527996,1724890045318,-159743.48071776,0.00029268,7]
[336527997,1724890045349,-7129.95628471,0.00029268,5]
[336527998,1724890045372,-500.0,0.00029268,7]
[336527999,1724890045396,-1084.39112651,0.00029268,7]
[336528000,1724890045420,-9729.48755493,0.00029268,7]
[336528001,1724890045444,-683.72945698,0.00029268,10]
[336528002,1724890045470,-1701.11480036,0.00029268,15]
[336528003,1724890045497,-300.0,0.00029268,15]
[336528004,1724890045521,-2172.48700767,0.00029268,10]
[336528005,1724890045547,-838.85919704,0.00029268,10]
[336528006,1724890045572,-1000.0,0.00029268,10]
[336528007,1724890045604,-500.0,0.00029268,10]
[336528008,1724890045628,-10000.0,0.00029268,7]
[336528009,1724890045653,-265.47421404,0.00029268,10]
[336528010,1724890045680,-275.0,0.00029268,14]
[336528011,1724890045704,-200.08996556,0.00029268,7]
[336528012,1724890045730,-1024.72046794,0.00029268,20]
[336528013,1724890045756,-40000.0,0.00029268,7]
[336528014,1724890045780,-821.50148946,0.00029268,15]
[336528015,1724890045805,-3097.0,0.00029268,10]
[336528016,1724890045833,-37471.03053874,0.00029268,15]
[336528017,1724890045858,-373.30656906,0.00029268,14]
[336528018,1724890045883,-1971.4468665,0.00029268,10]
[336528019,1724890045907,-402.88086234,0.00029268,22]
[336528020,1724890045932,-6938.79885754,0.00029268,30]
[336528021,1724890045957,-1394.36228372,0.00029268,16]
[336528022,1724890045982,-4630.46657186,0.00029268,120]
[336528023,1724890046007,-220.96198962,0.00029268,120]
[336528024,1724890046032,-1923.47479775,0.00029268,30]
[336528025,1724890046059,-706.75660266,0.00029268,30]
[336528026,1724890046085,-1623.81578429,0.00029268,120]
[336528027,1724890046111,-355.83164331,0.00029268,30]
[336528028,1724890046137,-1000.0,0.00029268,30]
[336528029,1724890046163,-482.92097312,0.00029268,30]
[336528030,1724890046188,-1000.0,0.00029268,30]
[336528031,1724890046213,-1000.0,0.00029268,30]
[336528032,1724890046239,-253.53093465,0.00029268,30]
[336528033,1724890046265,-1000.0,0.00029268,30]
[336528034,1724890046289,-3295.39799442,0.00029268,120]
[336528035,1724890046313,-1000.0,0.00029268,30]
[336528036,1724890046340,-379.68663165,0.00029268,30]
[336528037,1724890046365,-2500.0,0.00029268,30]
[336528038,1724890046390,-163.87274786,0.00029268,120]
[336528039,1724890046413,-714.64926158,0.00029268,120]
[336528040,1724890046438,-2964.86544594,0.00029268,120]
[336528041,1724890046463,-3254.0,0.00029268,120]
[336528042,1724890046513,-2450.3933,0.00029268,30]
[336528043,1724890046562,-820.37416806,0.00029268,30]
[336528044,1724890046613,-1200.0,0.00029268,120]
[336528045,1724890046662,-3000.0,0.00029268,30]
[336528046,1724890046691,-828.22072449,0.00029268,30]
[336528047,1724890046722,-357.57973556,0.00029268,32]
[336528048,1724890046748,-158.37958921,0.00029268,120]
[336528049,1724890046773,-892.11182415,0.00029268,30]
[336528050,1724890046799,-2011.99986471,0.00029268,60]
[336528051,1724890046823,-199.67289269,0.00029268,30]
[336528052,1724890046850,-921.63016425,0.00029268,30]
[336528053,1724890046876,-198.12515861,0.00029268,120]
[336528054,1724890046900,-3306.19490942,0.00029268,120]
[336528055,1724890046924,-902.71435983,0.00029268,120]
[336528056,1724890046948,-1775.99943376,0.00029268,120]
[336528057,1724890046973,-1350.00803602,0.00029268,31]
[336528058,1724890046998,-948.25825692,0.00029268,120]
[336528059,1724890047024,-336.85296564,0.00029268,30]
[336528060,1724890047399,-1403.38432862,0.00029268,120]
[336528061,1724890047426,-1524.01004687,0.00029268,30]
[336528062,1724890047453,-341.1887161,0.00029268,120]
[336528063,1724890047478,-693.57220425,0.00029268,120]
[336528064,1724890047505,-1791.65665675,0.00029268,120]
[336528065,1724890047531,-319.17671142,0.00029268,120]
[336528066,1724890047555,-989.0085332,0.00029268,120]
[336528067,1724890047582,-766.66969795,0.00029268,120]
[336528068,1724890047607,-273.62817096,0.00029268,31]
[336528069,1724890047631,-3035.68598772,0.00029268,120]
[336528070,1724890047656,-2531.96977821,0.00029268,120]
[336528071,1724890047682,-177.28087026,0.00029268,120]
[336528072,1724890047706,-414.9482861,0.00029268,30]
[336528073,1724890047730,-226.15027201,0.00029268,120]
[336528074,1724890047754,-465.70114889,0.00029268,30]
[336528075,1724890047778,-2941.53991404,0.00029268,30]
[336528076,1724890047802,-205.84286027,0.00029268,120]
[336528077,1724890047829,-593.30732749,0.00029268,120]
[336528078,1724890047854,-2313.33769424,0.00029268,120]
[336528079,1724890047881,-885.759034,0.00029268,30]
[336528080,1724890047907,-395.85618475,0.00029268,120]
[336528081,1724890047932,-463.1172084,0.00029268,120]
[336528082,1724890047957,-906.28035955,0.00029268,120]
[336528083,1724890047981,-984.2747979,0.00029268,120]
[336528084,1724890048005,-217.69558389,0.00029268,120]
[336528085,1724890048030,-380.56727047,0.00029268,120]
[336528086,1724890048055,-847.74243053,0.00029268,30]
[336528087,1724890048080,-358.7643589,0.00029268,120]
[336528088,1724890048105,-951.4846371,0.00029268,120]
[336528089,1724890048132,-156.6810578,0.00029268,120]
[336528090,1724890048157,-2738.41953382,0.00029268,30]
[336528091,1724890048181,-195.24080186,0.00029268,30]
[336528092,1724890048207,-464.50642664,0.00029268,120]
[336528093,1724890048231,-1221.83812683,0.00029268,120]
[336528094,1724890048255,-1934.07155851,0.00029268,120]
[336528095,1724890048279,-401.97731805,0.00029268,30]
[336528096,1724890048302,-1911.26774674,0.00029268,30]
[336528097,1724890048326,-496.08657234,0.00029268,30]
[336528098,1724890048350,-1308.68349643,0.00029268,120]
[336528099,1724890048374,-255.72708881,0.00029268,30]
[336528100,1724890048397,-2573.3205452,0.00029268,30]
[336528101,1724890048420,-611.4579028,0.00029268,120]
[336528102,1724890048443,-1694.89740902,0.00029268,30]
[336528103,1724890048466,-288.57144083,0.00029268,31]
[336528104,1724890048491,-2224.83877674,0.00029268,30]
[336528105,1724890048517,-244.12808112,0.00029268,120]
[336528106,1724890048541,-2700.26753704,0.00029268,30]
[336528107,1724890048566,-2152.47599075,0.00029268,30]
[336528108,1724890048602,-822.16751342,0.00029268,30]
[336528109,1724890048626,-1699.72199563,0.00029268,120]
[336528110,1724890048650,-160.22890267,0.00029268,120]
[336528111,1724890048675,-1403.11509365,0.00029268,30]
[336528112,1724890048699,-1888.00184936,0.00029268,30]
[336528113,1724890048722,-1097.25627114,0.00029268,30]
[336528114,1724890048749,-646.68397226,0.00029268,120]
[336528115,1724890048776,-756.0,0.00029268,120]
[336528116,1724890048804,-289.47154787,0.00029268,30]
[336528117,1724890048831,-2105.8386777,0.00029268,30]
[336528118,1724890048855,-3435.74664966,0.00029268,120]
[336528119,1724890048879,-1065.4968051,0.00029268,120]
[336528120,1724890048903,-228.87011567,0.00029268,60]
[336528121,1724890048927,-266.0,0.00029268,30]
[336528122,1724890048951,-2394.51370401,0.00029268,120]
[336528123,1724890048977,-3016.6455086,0.00029268,120]
[336528124,1724890049001,-633.74606511,0.00029268,30]
[336528125,1724890049025,-200.3557591,0.00029268,120]
[336528126,1724890049049,-5000.0,0.00029268,120]
[336528127,1724890049073,-1003.28871082,0.00029268,30]
[336528128,1724890049098,-3110.39151072,0.00029268,60]
[336528129,1724890049124,-1000.0,0.00029268,30]
[336528130,1724890049149,-1000.0,0.00029268,30]
[336528131,1724890049241,-1000.0,0.00029268,30]
[336528132,1724890049284,-1000.0,0.00029268,30]
[336528133,1724890049334,-160.0,0.00029268,30]
[336528134,1724890049382,-193.0,0.00029268,30]
[336528135,1724890049426,-2446.05543675,0.00029268,120]
[336528136,1724890049451,-100000.0,0.00029268,30]
[336528137,1724890049477,-2212.47232632,0.00029268,90]
[336528138,1724890049503,-3036.03557808,0.00029268,30]
[336528139,1724890049527,-488.52229691,0.00029268,30]
[336528140,1724890049553,-365.10957526,0.00029268,30]
[336528141,1724890049578,-530.10414674,0.00029268,60]
[336528142,1724890049602,-1316.97084104,0.00029268,30]
[336528143,1724890049628,-2159.20360408,0.00029268,120]
[336528144,1724890049654,-1534.07255358,0.00029268,30]
[336528145,1724890049678,-837.53428216,0.00029268,30]
[336528146,1724890049702,-1000.0,0.00029268,30]
[336528147,1724890049726,-2647.28723199,0.00029268,30]
[336528148,1724890049749,-2268.81975328,0.00029268,30]
[336528149,1724890049772,-2690.25797887,0.00029268,120]
[336528150,1724890049795,-1480.77349598,0.00029268,30]
[336528151,1724890049820,-1218.75116474,0.00029268,30]
[336528152,1724890049845,-7120.07286851,0.00029268,30]
[336528153,1724890049873,-374.69741699,0.00029268,30]
[336528154,1724890049898,-283.21761832,0.00029268,30]
[336528155,1724890049922,-7380.85185594,0.00029268,35]
[336528156,1724890049945,-903.21164447,0.00029268,20]
[336528157,1724890049972,-2000.64933296,0.00029268,120]
[336528158,1724890049999,-632.6686935,0.00029268,120]
[336528159,1724890050023,-227.64540724,0.00029268,30]
[336528160,1724890050048,-1926.15875305,0.00029268,120]
[336528161,1724890050076,-274.0,0.00029268,120]
[336528162,1724890050102,-160.0,0.00029268,120]
[336528163,1724890050129,-313.52467126,0.00029268,7]
[336528164,1724890050155,-2013.77554524,0.00029268,120]
[336528165,1724890050179,-3251.88754068,0.00029268,120]
[336528166,1724890050204,-193.0,0.00029268,30]
[336528167,1724890050229,-193.0,0.00029268,30]
[336528168,1724890050253,-200.0,0.00029268,30]
[336528169,1724890050277,-186.0,0.00029268,30]
[336528170,1724890050301,-768.46353679,0.00029268,120]
[336528171,1724890050326,-194.57904006,0.00029268,120]
[336528172,1724890050352,-2000.0,0.00029268,30]
[336528173,1724890050377,-2000.0,0.00029268,30]
[336528174,1724890050402,-2050.8,0.00029268,30]
[336528175,1724890050429,-993.0,0.00029268,30]
[336528176,1724890050456,-722.7299216,0.00029268,30]
[336528177,1724890050482,-1000.0,0.00029268,30]
[336528178,1724890050511,-1000.0,0.00029268,60]
[336528179,1724890050537,-151.0,0.00029268,30]
[336528180,1724890050561,-1000.0,0.00029268,30]
[336528181,1724890050612,-1000.0,0.00029268,30]
[336528182,1724890050671,-1000.0,0.00029268,30]
[336528183,1724890050723,-1000.0,0.00029268,30]
[336528184,1724890050765,-1000.0,0.00029268,30]
[336528185,1724890050788,-1000.0,0.00029268,30]
[336528186,1724890050825,-1000.0,0.00029268,30]
[336528187,1724890050907,-1000.0,0.00029268,30]
[336528188,1724890050967,-1000.0,0.00029268,30]
[336528189,1724890050996,-1000.0,0.00029268,30]
[336528190,1724890051019,-1000.0,0.00029268,30]
[336528191,1724890051042,-1000.0,0.00029268,30]
[336528192,1724890051065,-1000.0,0.00029268,30]
[336528193,1724890051089,-1000.0,0.00029268,30]
[336528194,1724890051113,-1000.0,0.00029268,30]
[336528195,1724890051137,-1000.0,0.00029268,30]
[336528196,1724890051161,-1000.0,0.00029268,30]
[336528197,1724890051185,-1000.0,0.00029268,30]
[336528198,1724890051209,-1000.0,0.00029268,30]
[336528199,1724890051233,-1000.0,0.00029268,30]
[336528200,1724890051257,-1000.0,0.00029268,30]
[336528201,1724890051281,-1000.0,0.00029268,30]
[336528202,1724890051304,-1000.0,0.00029268,30]
[336528203,1724890051328,-1000.0,0.00029268,30]
[336528204,1724890051353,-1000.0,0.00029268,30]
[336528205,1724890051377,-1000.0,0.00029268,30]
[336528206,1724890051400,-1000.0,0.00029268,30]
[336528207,1724890051424,-1000.0,0.00029268,30]
[336528208,1724890051449,-1000.0,0.00029268,30]
[336528209,1724890051474,-1000.0,0.00029268,30]
[336528210,1724890051501,-155.535429,0.00029268,40]
[336528211,1724890051524,-155.535429,0.00029268,40]
[336528212,1724890051550,-150.0,0.00029268,30]
[336528213,1724890051575,-150.0,0.00029268,30]
[336528214,1724890051601,-287.019743,0.00029268,30]
[336528215,1724890065356,193.0,0.00029268,30]
[336528216,1724890065738,193.0,0.00029268,30]
[336528221,1724890231800,-300.0,0.00019725,2]
[336528222,1724890231810,-289.0,0.00020362,2]
[336528223,1724890231820,-673.055,0.00020362,2]
[336528224,1724890231830,-420.0,0.00021484,2]
[336528225,1724890231840,-1000.0,0.00021576,2]
[336528226,1724890231849,-587.0,0.00023401,2]
[336528227,1724890231859,-150.0,0.00023682,2]
[336528228,1724890231869,-169.97,0.00023726,2]
[336528229,1724890231878,-1198.0,0.00023801,2]
[336528230,1724890231888,-369.0,0.00023802,2]
[336528231,1724890231897,-467.17,0.00023803,2]
[336528232,1724890231907,-780.66,0.00023805,30]
[336528233,1724890231917,-200.0,0.00023813,2]
[336528234,1724890231926,-793.90158002,0.00024273,2]
[336528235,1724890231951,-206.09841998,0.00024273,2]
[336528236,1724890231960,-150.0,0.00024315,2]
[336528237,1724890231970,-150.0,0.000244,6]
[336528238,1724890231979,-421.71,0.00024672,2]
[336528239,1724890231989,-150.0,0.00024681,2]
[336528240,1724890231999,-500.0,0.00024682,30]
[336528241,1724890232009,-500.0,0.00024682,30]
[336528242,1724890232019,-510.99784155,0.00024682,30]
[336528243,1724890232029,-500.0,0.00024682,30]
[336528244,1724890232039,-500.0,0.00024682,30]
[336528245,1724890232049,-500.0,0.00024682,30]
[336528246,1724890232059,-500.0,0.00024682,30]
[336528247,1724890232069,-500.0,0.00024682,30]
[336528249,1724890232079,-500.0,0.00024682,30]
[336528251,1724890232088,-500.0,0.00024682,30]
[336528253,1724890232098,-500.0,0.00024682,30]
[336528254,1724890232108,-500.0,0.00024682,30]
[336528255,1724890232117,-500.0,0.00024682,30]
[336528256,1724890232127,-500.0,0.00024682,30]
[336528257,1724890232136,-137.75179177,0.00024682,30]
[336528258,1724890232148,-362.24820823,0.00024682,30]
[336528259,1724890232158,-58.7398398,0.00024682,30]
[336528260,1724890232189,-387.17470319,0.00024682,30]
[336528261,1724890232198,-462.57098659,0.000247,2]
[336528269,1724890237917,-737.42901341,0.000247,2]
[336528270,1724890237927,-496.0,0.000247,2]
[336528271,1724890237936,-369.61,0.000247,2]
[336528272,1724890237945,-736.5947,0.00024731,2]
[336528273,1724890237954,-3552.96518172,0.00024731,2]
[336528274,1724890237963,-3552.96518164,0.00024742,2]
[336528275,1724890237972,-500.0,0.00024749,2]
[336528276,1724890237984,-394.43592323,0.00024751,2]
[336528277,1724890237995,-429.96407677,0.00024751,2]
[336528278,1724890238004,-2375.16948217,0.00024753,2]
[336528279,1724890238015,-491.77976376,0.00024753,2]
[336528280,1724890238149,-363.97062925,0.00024753,2]
[336528281,1724890238235,-322.04530646,0.00024753,2]
[336528282,1724890238245,-633.22527232,0.00024755,2]
[336528286,1724890239962,-866.77472768,0.00024755,2]
[336528287,1724890239972,-3552.96518164,0.00024764,2]
[336528288,1724890239982,-500.0,0.00024766,2]
[336528289,1724890239991,-3552.96518164,0.00024775,2]
[336528290,1724890240001,-769.6496619,0.00024787,2]
[336528291,1724890240016,-2783.31551974,0.00024787,2]
[336528292,1724890240026,-3552.96518164,0.00024798,2]
[336528293,1724890240035,-993.0,0.000248,8]
[336528294,1724890240044,-151.4,0.000248,2]
[336528295,1724890240054,-2000.0,0.000248,2]
[336528296,1724890240063,-531.8,0.000248,2]
[336528297,1724890240072,-193.0,0.000248,8]
[336528298,1724890240082,-3552.96518164,0.00024809,2]
[336528299,1724890240091,-7500.0,0.00024817,2]
[336528300,1724890240100,-3552.96518164,0.0002482,2]
[336528301,1724890240109,-2284.0692,0.00024821,2]
[336528302,1724890240118,-322.24094211,0.00024821,2]
[336528303,1724890240128,-30402.00438106,0.00024831,2]
[336528304,1724890240139,-7312.89457521,0.00024831,2]
[336528305,1724890240150,-747.57594373,0.00024831,2]
[336528306,1724890240160,-2526.83197575,0.00024831,2]
[336528307,1724890240171,-326.10242425,0.00024831,2]
[336528308,1724890240181,-1000.0,0.00024831,2]
[336528309,1724890240191,-159.608,0.00024831,2]
[336528310,1724890240200,-171.44483393,0.00024831,2]
[336528311,1724890240210,-3552.96518164,0.00024831,2]
[336528312,1724890240219,-163.47274822,0.00024847,2]
[336528313,1724890240241,-158.76819387,0.00024847,2]
[336528314,1724890240251,-322.24094209,0.00024874,2]
[336528315,1724890240260,-1500.0,0.000249,2]
[336528316,1724890240270,-496.0,0.000249,8]
[336528317,1724890240280,-2979.0,0.000249,8]
[336528318,1724890240289,-266.589999,0.000249,2]
[336528319,1724890240298,-193.0,0.000249,8]
[336528320,1724890240309,-496.0,0.000249,8]
[336528321,1724890240318,-193.0,0.000249,8]
[336528322,1724890240327,-5631.0,0.000249,4]
[336528323,1724890240337,-322.24094209,0.000249,2]
[336528324,1724890240346,-565.62376518,0.00024911,4]
[336528325,1724890240358,-110032.49929626,0.00024911,4]
[336528326,1724890240385,-685.87385056,0.00024911,4]
[336528328,1724890240395,-150.82,0.00024911,2]
[336528329,1724890240404,-13847.3736764,0.00024921,4]
[336528330,1724890240415,-656.60656736,0.00024921,4]
[336528331,1724890240426,-565.48,0.00024921,4]
[336528332,1724890240437,-5966.59176036,0.00024921,4]
[336528333,1724890240453,-88110.31397057,0.00024921,4]
[336528356,1724890244757,-9956.90657658,0.00024921,4]
[336528357,1724890244816,-977.39069926,0.00024921,4]
[336528358,1724890244827,-927.77,0.00024921,4]
[336528359,1724890244838,-101559.56057347,0.00024921,4]
[336528360,1724890244847,-106774.351981,0.00024921,4]
[336528361,1724890244857,-150.82,0.00024921,2]
[336528362,1724890244867,-150.82,0.00024921,2]
[336528363,1724890244877,-150.82,0.00024921,2]
[336528364,1724890244887,-150.82,0.00024921,2]
[336528365,1724890244897,-150.0,0.0002493,10]
[336528366,1724890244908,-150.0,0.0002493,10]
[336528367,1724890244917,-150.0,0.0002493,10]
[336528368,1724890244930,-150.0,0.0002493,10]
[336528369,1724890244939,-150.0,0.0002493,10]
[336528370,1724890244952,-150.0,0.0002493,10]
[336528371,1724890244962,-150.0,0.0002493,10]
[336528372,1724890244974,-150.0,0.0002493,10]
[336528373,1724890244986,-150.0,0.0002493,10]
[336528374,1724890244995,-150.0,0.0002493,10]
[336528375,1724890245004,-150.0,0.0002493,10]
[336528376,1724890245014,-150.0,0.0002493,10]
[336528377,1724890245023,-150.0,0.0002493,10]
[336528378,1724890245032,-150.0,0.0002493,10]
[336528379,1724890245042,-150.0,0.0002493,10]
[336528380,1724890245051,-150.0,0.0002493,10]
[336528381,1724890245060,-982.14332464,0.0002493,2]
[336528382,1724890245070,-192.44092018,0.0002493,2]
[336528383,1724890245079,-318.58,0.0002493,2]
[336528384,1724890245088,-629.0,0.0002493,2]
[336528385,1724890245098,-1126.76351552,0.00024931,2]
[336528386,1724890245107,-78.15486452,0.00024931,15]
[336528387,1724890245182,-450.0,0.00024931,15]
[336528388,1724890245193,-656.86101804,0.00024931,15]
[336528389,1724890245204,-293.80853246,0.00024931,15]
[336528390,1724890245215,-1728.53770147,0.00024931,15]
[336528391,1724890245226,-443.4506406,0.00024931,15]
[336528392,1724890245237,-378.703701,0.00024931,15]
[336528393,1724890245259,-4143.31,0.00024931,15]
[336528394,1724890245270,-2631.40179343,0.00024931,15]
[336528395,1724890245281,-1383.95848256,0.00024931,15]
[336528396,1724890245292,-8287.78191009,0.00024931,15]
[336528398,1724890245807,-3151.26942458,0.00024931,15]
[336528399,1724890245914,-361.14764114,0.00024931,15]
[336528400,1724890245926,-5923.0,0.00024931,15]
[336528401,1724890245968,-1619.0,0.00024931,15]
[336528405,1724890298103,260.85,0.00010959,2]
[336528406,1724890340976,1315.77,0.00023744,120]
[336528472,1724890756352,5870.84009495,0.0001089,2]
[336528473,1724891040880,160.53,0.00010959,2]
[336528474,1724891108126,167396.68990505,0.00011,2]
[336528475,1724891108174,4526632.32116521,0.00011,2]
[336528476,1724891231677,300.0,0.000101,3]
[336528477,1724891233773,700.0,0.000102,3]
[336528478,1724891235866,1100.0,0.000103,3]
[336528479,1724891237965,1500.0,0.000104,3]
[336528480,1724891240142,1900.0,0.000105,3]
[336528481,1724891242216,300.0,0.000106,3]
[336528482,1724891244735,300.0,0.000107,3]
[336528483,1724891246403,300.0,0.000108,3]
[336528484,1724891248865,300.0,0.000109,3]
[336528485,1724891277404,1813.12801243,0.0001089,2]
[336528486,1724891315932,1280.83319071,0.0002,60]
[336528489,1724891428816,500.0,0.00024,120]
[336528495,1724891431944,-855.0,0.00010989,2]
[336528496,1724891431956,-150.82,0.0001099,2]
[336528497,1724891431965,-150.82,0.0001099,2]
[336528498,1724891431974,-150.82,0.0001099,2]
[336528499,1724891431984,-281.14,0.0001099,2]
[336528500,1724891431995,-281.14,0.0001099,2]
[336528501,1724891432005,-281.14,0.0001099,2]
[336528502,1724891432014,-150.82,0.0001099,2]
[336528503,1724891432023,-150.82,0.0001099,2]
[336528504,1724891432037,-133.4384158,0.0001099,2]